bitfinex/quotes_ETHUSD_20250903
["timestamp","ask_amount","ask_price","bid_price","bid_amount"]
[1756899797299,0.792,4390.2,4389.7,0.4581]
[1756899797468,2.39155621,4389.9,4389.7,0.4581]
[1756899797659,2.39155621,4389.9,4389.6,0.4616]
[1756899797865,5.39155621,4389.9,4389.8,0.3373]
[1756899798395,6.28255621,4389.9,4389.8,0.029]
[1756899798694,6.18355621,4389.9,4389.8,0.7954]
[1756899799075,6.18355621,4389.9,4389.8,0.3373]
[1756899799276,7.1065598,4389.9,4389.8,0.029]
[1756899799490,12.92707213,4389.9,4389.8,0.029]
[1756899800189,12.92707213,4389.9,4389.8,1.257]
[1756899800190,7.1065598,4389.9,4389.8,1.257]
[1756899800590,6.3145598,4389.9,4389.8,1.257]
[1756899802004,12.92707213,4389.9,4389.8,0.029]
[1756899802300,13.33951997,4389.9,4389.8,0.029]
[1756899802601,12.92627213,4389.9,4389.8,0.029]
[1756899803493,13.02527213,4389.9,4389.8,0.029]
[1756899808828,7.1057598,4389.9,4389.8,0.7954]
[1756899809132,7.1057598,4389.9,4389.8,1.257]
[1756899809133,2.39075621,4389.9,4389.8,1.257]
[1756899809314,5.39075621,4389.9,4389.8,1.257]
[1756899814702,5.39155621,4389.9,4389.8,1.257]
[1756899816936,0.4616,4390.0,4389.8,1.257]
[1756899817116,0.4616,4390.0,4389.8,0.3373]
[1756899817318,2.73950638,4390.0,4389.9,0.9271]
[1756899817638,5.73950638,4390.0,4389.9,1.2422]
[1756899818428,3.4616,4390.0,4389.9,1.2422]
[1756899818823,5.73950432,4390.0,4389.9,1.2422]
[1756899819960,5.85310432,4390.0,4389.9,1.2422]
[1756899821614,6.6661954,4390.0,4389.9,0.3151]
[1756899821814,6.6661954,4390.0,4389.9,0.7771]
[1756899822019,5.27795621,4389.9,4389.8,0.029]
[1756899822455,5.89900405,4389.9,4389.8,0.029]
[1756899822754,6.38340405,4389.9,4389.8,0.029]
[1756899822939,7.66204314,4389.9,4389.8,0.029]
[1756899823526,7.17764314,4389.9,4389.8,0.029]
[1756899823929,7.6553953,4389.9,4389.8,0.029]
[1756899824870,7.3485953,4389.9,4389.8,0.029]
[1756899825059,7.3485953,4389.9,4389.8,0.8061]
[1756899825973,7.3495953,4389.9,4389.8,0.8061]
[1756899826147,0.1146,4389.9,4389.8,1.2712]
[1756899826332,0.001,4389.9,4389.8,1.2712]
[1756899826662,3.001,4389.9,4389.8,1.2712]
[1756899826959,3.0002,4389.9,4389.8,1.2712]
[1756899827126,5.27815621,4389.9,4389.8,1.2712]
[1756899827725,3.0002,4389.9,4389.8,1.2712]
[1756899828086,5.27815621,4389.9,4389.8,1.2712]
[1756899829637,5.27815621,4389.9,4389.8,0.3441]
[1756899830363,5.27815621,4389.9,4389.8,0.8061]
[1756899834572,5.27815621,4389.9,4389.8,1.2712]
[1756899835072,3.0002,4389.9,4389.8,1.2712]
[1756899835488,5.27815621,4389.9,4389.8,1.2712]
[1756899835844,3.0002,4389.9,4389.8,1.2712]
[1756899836044,5.27815621,4389.9,4389.8,1.2712]
[1756899838485,3.0002,4389.9,4389.8,1.2712]
[1756899838854,5.27815621,4389.9,4389.8,1.2712]
[1756899839254,3.0002,4389.9,4389.8,1.2712]
[1756899839475,0.0002,4389.9,4389.8,1.39832]
[1756899839985,0.0002,4389.9,4389.8,1.51192]
[1756899842399,0.0002,4389.9,4389.8,1.3848]
[1756899843599,0.0002,4389.9,4389.8,1.4006]
[1756899848800,0.0002,4389.9,4389.8,3.5650081]
[1756899849521,0.0002,4389.9,4389.8,3.58778818]
[1756899849810,0.001,4390.4,4390.3,2.27774867]
[1756899850109,0.001,4390.4,4390.3,3.31535663]
[1756899850307,0.001,4390.4,4390.3,4.55775663]
[1756899850680,0.001,4390.4,4390.3,4.58053411]
[1756899851208,0.0002,4390.4,4390.3,4.55775663]
[1756899858619,0.0002,4390.4,4390.3,3.60875663]
[1756899858807,0.0002,4390.4,4390.3,2.68474867]
[1756899859013,0.0002,4390.4,4390.3,3.63374867]
[1756899860717,0.0002,4390.4,4390.3,3.63774867]
[1756899866037,0.0002,4390.4,4390.3,3.15684867]
[1756899866845,0.5602,4390.4,4390.3,0.004]
[1756899867053,4.30123703,4390.4,4390.3,0.004]
[1756899867252,1.30123703,4390.4,4390.3,0.004]
[1756899867950,1.09223703,4390.4,4390.3,0.004]
[1756899869082,0.0992,4390.4,4390.3,0.004]
[1756899872888,3.5589,4390.4,4390.3,0.004]
[1756899873684,2.83659679,4390.4,4390.3,0.004]
[1756899874421,0.5589,4390.4,4390.3,0.004]
[1756899874761,0.0992,4390.4,4390.3,0.004]
[1756899875792,0.0984,4390.4,4390.3,0.004]
[1756899876318,2.27760091,4390.6,4390.3,0.004]
[1756899876619,0.099,4390.4,4390.3,0.004]
[1756899877112,3.099,4390.4,4390.3,0.004]
[1756899878806,0.099,4390.4,4390.3,0.004]
[1756899879787,2.39114659,4390.7,4390.3,0.004]
[1756899880001,2.27759617,4390.6,4390.3,0.7752]
[1756899880202,0.001,4390.8,4390.4,0.9206]
[1756899880402,0.001,4390.8,4390.5,0.1136]
[1756899880605,0.001,4390.8,4390.5,0.573]
[1756899881020,2.27850499,4390.8,4390.5,0.573]
[1756899881198,0.001,4390.8,4390.5,0.573]
[1756899881799,2.27850416,4390.8,4390.5,0.1136]
[1756899882092,0.3041,4390.6,4390.5,0.1136]
[1756899882299,7.3418633,4390.6,4390.5,0.1136]
[1756899882610,7.3418633,4390.6,4390.3,0.004]
[1756899882611,2.27769679,4390.4,4390.3,0.004]
[1756899883016,5.57879679,4390.4,4390.3,0.004]
[1756899884040,3.0,4390.4,4390.3,0.3158]
[1756899884201,3.0,4390.4,4390.3,1.2364]
[1756899884553,5.37669679,4390.4,4390.3,0.004]
[1756899886698,3.0,4390.4,4390.3,0.004]
[1756899887030,3.0,4390.4,4390.3,0.3158]
[1756899887413,5.27769679,4390.4,4390.3,0.004]
[1756899888331,6.13222699,4390.4,4390.3,0.004]
[1756899889442,6.59192699,4390.4,4390.3,0.004]
[1756899890032,6.80032699,4390.4,4390.3,0.004]
[1756899890232,11.35209726,4390.4,4390.3,0.004]
[1756899892141,11.25309726,4390.4,4390.3,0.004]
[1756899893441,10.79339726,4390.4,4390.3,0.004]
[1756899895130,6.03322699,4390.4,4390.3,0.004]
[1756899896920,3.0,4390.4,4390.3,0.4652]
[1756899897256,3.001,4390.4,4390.3,1.2364]
[1756899897462,0.001,4390.4,4390.3,1.2364]
[1756899897642,0.001,4390.4,4390.3,1.23493308]
[1756899898351,0.001,4390.4,4390.3,3.51268175]
[1756899898554,0.001,4390.4,4390.3,4.1030934]
[1756899899532,15.36103733,4390.4,4390.3,0.00253308]
[1756899899741,15.56943733,4390.4,4390.3,0.00253308]
[1756899899940,10.60086706,4390.4,4390.3,0.00253308]
[1756899900463,10.60006706,4390.4,4390.3,0.00253308]
[1756899900756,11.91780915,4390.4,4390.3,0.00253308]
[1756899901131,17.67837942,4390.4,4390.3,0.00253308]
[1756899902130,12.12620915,4390.4,4390.3,0.00253308]
[1756899903129,17.67837942,4390.4,4390.3,0.00253308]
[1756899903538,12.91820915,4390.4,4390.3,0.00253308]
[1756899903739,12.70980915,4390.4,4390.3,0.00253308]
[1756899903940,5.37689679,4390.4,4390.3,0.00253308]
[1756899904135,5.27789679,4390.4,4390.3,0.00253308]
[1756899904351,5.27789679,4390.4,4390.3,0.31873308]
[1756899904582,5.27789679,4390.4,4390.3,0.75043308]
[1756899904874,0.0002,4390.4,4390.3,1.21273308]
[1756899906663,2.27789679,4390.4,4390.3,0.31873308]
[1756899906865,6.0807035,4390.4,4390.3,0.00253308]
[1756899907061,5.9817035,4390.4,4390.3,0.00253308]
[1756899907261,5.9817035,4390.4,4390.3,0.31873308]
[1756899907459,5.9817035,4390.4,4390.3,0.75043308]
[1756899907775,11.30387377,4390.4,4390.3,0.00253308]
[1756899907963,17.06444404,4390.4,4390.3,0.00253308]
[1756899909491,7.6577035,4390.4,4390.3,0.00253308]
[1756899911896,7.4493035,4390.4,4390.3,0.00253308]
[1756899912048,7.6577035,4390.4,4390.3,0.00253308]
[1756899913761,6.06974867,4390.3,4389.4,0.004]
[1756899914099,6.0702157,4389.4,4389.3,1e-08]
[1756899914301,6.0702157,4389.4,4388.8,1e-08]
[1756899914302,6.07047524,4388.9,4388.8,1e-08]
[1756899914466,6.90536322,4388.9,4388.8,1e-08]
[1756899914665,7.67586322,4388.9,4388.8,1e-08]
[1756899916588,7.78688138,4388.9,4388.8,1e-08]
[1756899919497,17.79699882,4388.9,4388.8,1e-08]
[1756899921886,17.59069882,4388.9,4388.8,1e-08]
[1756899923204,17.12769882,4388.9,4388.8,1e-08]
[1756899924692,17.12689882,4388.9,4388.8,1e-08]
[1756899925711,17.58989882,4388.9,4388.8,1e-08]
[1756899926909,17.79619882,4388.9,4388.8,1e-08]
[1756899927209,18.15363686,4388.9,4388.8,1e-08]
[1756899927908,17.94733686,4388.9,4388.8,1e-08]
[1756899928080,17.58989882,4388.9,4388.8,1e-08]
[1756899929217,17.12689882,4388.9,4388.8,1e-08]
[1756899929882,17.02569882,4388.9,4388.8,1e-08]
[1756899930619,17.02569882,4388.9,4388.8,0.75090001]
[1756899930620,6.22616322,4388.9,4388.8,0.75090001]
[1756899930816,2.39127524,4388.9,4388.8,1.24370001]
[1756899931516,11.21430322,4388.9,4388.8,1.24370001]
[1756899931731,12.00630322,4388.9,4388.8,0.75090001]
[1756899931900,12.00630322,4388.9,4388.8,1.24370001]
[1756899932086,13.44391096,4388.9,4388.8,1.24370001]
[1756899932486,13.44491096,4388.9,4388.8,1.24370001]
[1756899933542,13.54491096,4388.9,4388.8,1.24370001]
[1756899933704,13.54491096,4388.9,4388.8,0.75090001]
[1756899934316,13.54491096,4388.9,4388.8,1.24370001]
[1756899935451,13.54491096,4388.9,4388.8,0.75090001]
[1756899936216,13.54491096,4388.9,4388.8,0.30630001]
[1756899936534,13.54491096,4388.9,4388.8,1e-08]
[1756899938734,13.64391096,4388.9,4388.8,1e-08]
[1756899939142,2.27873484,4388.4,4388.3,0.004]
[1756899939314,11.5810717,4388.4,4388.3,0.004]
[1756899939805,11.6811717,4388.4,4388.3,0.004]
[1756899940424,11.5810717,4388.4,4388.3,0.004]
[1756899940839,11.5810717,4388.4,4388.3,0.7549]
[1756899941040,5.39233484,4388.4,4388.3,1.2477]
[1756899941216,6.18433484,4388.4,4388.3,1.2477]
[1756899944956,5.39233484,4388.4,4388.3,1.2477]
[1756899947827,5.39233484,4388.4,4388.3,0.7549]
[1756899948127,6.28333484,4388.4,4388.3,0.004]
[1756899948334,7.35285043,4388.4,4388.3,0.004]
[1756899949161,7.35205043,4388.4,4388.3,0.004]
[1756899949485,7.25305043,4388.4,4388.3,0.004]
[1756899949669,7.25305043,4388.4,4388.3,0.7549]
[1756899950034,7.25305043,4388.4,4388.3,0.3103]
[1756899950236,7.25305043,4388.4,4388.3,0.004]
[1756899950438,7.35205043,4388.4,4388.3,0.004]
[1756899954836,7.81815043,4388.4,4388.3,0.004]
[1756899955036,7.35205043,4388.4,4388.3,0.004]
[1756899958783,7.81815043,4388.4,4388.3,0.004]
[1756899958985,7.35205043,4388.4,4388.3,0.004]
[1756899961291,7.70950364,4388.4,4388.3,0.004]
[1756899962194,7.61050364,4388.4,4388.3,0.7661]
[1756899962770,7.61050364,4388.4,4388.3,0.004]
[1756899965173,6.07089063,4388.1,4388.0,0.463]
[1756899965377,6.07094257,4388.0,4387.9,0.004]
[1756899965877,6.53794257,4388.0,4387.9,0.467]
[1756899966112,6.53794257,4388.0,4387.9,0.3031]
[1756899966287,7.15622118,4388.0,4387.9,0.004]
[1756899966606,6.84197334,4388.0,4387.9,0.004]
[1756899966777,7.97555031,4388.0,4387.9,0.004]
[1756899967774,7.97555031,4388.0,4387.9,0.7661]
[1756899967975,7.97555031,4388.0,4387.9,1.2341]
[1756899971384,7.97555031,4388.0,4387.9,0.004]
[1756899972065,8.07455031,4388.0,4387.9,0.004]
[1756899972989,7.97555031,4388.0,4387.9,0.7661]
[1756899973584,7.97475031,4388.0,4387.9,0.7661]
[1756899974103,5.74514257,4388.0,4387.9,1.2341]
[1756899974399,2.39254257,4388.0,4387.9,1.2341]
[1756899976500,2.39254257,4388.0,4387.9,1.2341]
[1756899976873,9.32181839,4388.0,4387.9,0.7661]
[1756899977071,12.00757055,4388.0,4387.9,0.7661]
[1756899977316,13.46661676,4388.0,4387.9,0.7661]
[1756899977617,7.64358878,4388.0,4387.9,1.2341]
[1756899977823,6.18454257,4388.0,4387.9,1.2341]
[1756899978813,5.39254257,4388.0,4387.9,1.2341]
[1756899979300,11.21557055,4388.0,4387.9,0.3031]
[1756899979599,11.21557055,4388.0,4387.9,0.004]
[1756899979805,12.10657055,4388.0,4387.9,0.004]
[1756899980013,13.66255305,4388.0,4387.9,0.004]
[1756899981303,13.66255305,4388.0,4387.9,0.3031]
[1756899981304,7.62692507,4388.0,4387.9,0.3031]
[1756899981520,12.50984002,4388.0,4387.9,0.7661]
[1756899981714,10.23089745,4388.0,4387.9,0.004]
[1756899982012,12.50984002,4388.0,4387.9,0.7661]
[1756899982219,5.39254257,4388.0,4387.9,1.2341]
[1756899982417,0.1136,4388.0,4387.9,1.2341]
[1756899982794,2.39254257,4388.0,4387.9,1.2341]
[1756899984019,3.18454257,4388.0,4387.9,0.3031]
[1756899984217,3.18454257,4388.0,4387.9,0.7661]
[1756899985514,3.18454257,4388.0,4387.9,1.2341]
[1756899985715,3.18454257,4388.0,4387.9,0.7661]
[1756899986097,3.18454257,4388.0,4387.9,0.3031]
[1756899986296,3.18454257,4388.0,4387.9,0.7661]
[1756899987318,6.18554257,4388.0,4387.9,0.7661]
[1756899988641,6.18554257,4388.0,4387.9,0.3031]
[1756899988928,6.18554257,4388.0,4387.9,0.004]
[1756899989124,6.18554257,4388.0,4387.9,0.7661]
[1756899990302,6.18554257,4388.0,4387.9,0.004]
[1756899990506,7.62749343,4388.0,4387.9,0.004]
[1756899991606,7.62749343,4388.0,4387.8,0.029]
[1756899991839,7.62749343,4388.0,4385.8,0.029]
[1756899991840,6.07141008,4387.1,4386.1,0.4511]
[1756899992031,6.07141008,4387.1,4387.0,1e-08]
[1756899992211,7.68218496,4387.1,4387.0,1e-08]
[1756899992405,7.76829609,4387.1,4387.0,1e-08]
[1756899993215,6.99789609,4387.1,4387.0,1e-08]
[1756899994451,7.09689609,4387.1,4387.0,1e-08]
[1756899995344,7.56309609,4387.1,4387.0,1e-08]
[1756899995750,6.99789609,4387.1,4387.0,1e-08]
[1756899996048,6.99789609,4387.1,4387.0,0.30670001]
[1756899996221,6.99789609,4387.1,4387.0,1e-08]
[1756899998135,6.99709609,4387.1,4387.0,1e-08]
[1756899998348,7.09609609,4387.1,4387.0,1e-08]
[1756900001459,7.56229609,4387.1,4387.0,1e-08]
[1756900002348,7.67589609,4387.1,4387.0,1e-08]
[1756900002851,7.20969609,4387.1,4387.0,1e-08]
[1756900003762,3.07156597,4386.8,4386.7,0.004]
[1756900003931,7.59505838,4386.8,4386.7,0.004]
[1756900004127,7.59505838,4386.8,4386.6,1e-08]
[1756900004128,2.27961793,4386.7,4386.6,1e-08]
[1756900004353,6.74511793,4386.7,4386.6,1e-08]
[1756900004553,19.72115557,4386.7,4386.6,1e-08]
[1756900004857,19.62745557,4386.7,4386.6,1e-08]
[1756900005040,20.79635739,4386.7,4386.6,1e-08]
[1756900005530,20.33015739,4386.7,4386.6,1e-08]
[1756900005957,7.35411975,4386.7,4386.6,0.30670001]
[1756900006166,7.35411975,4386.7,4386.6,1.19020001]
[1756900006932,2.39321793,4386.7,4386.6,1.19020001]
[1756900007129,3.18521793,4386.7,4386.6,1.19020001]
[1756900008146,16.36425557,4386.7,4386.6,1e-08]
[1756900008356,19.36425557,4386.7,4386.6,1e-08]
[1756900008665,22.03907772,4386.7,4386.6,1e-08]
[1756900008867,21.57287772,4386.7,4386.6,1e-08]
[1756900009335,22.03907772,4386.7,4386.6,1e-08]
[1756900009666,21.57287772,4386.7,4386.6,1e-08]
[1756900010028,6.0716699,4386.6,4386.5,1e-08]
[1756900010227,7.89839284,4386.6,4386.5,1e-08]
[1756900010442,8.20259284,4386.6,4386.5,1e-08]
[1756900010767,8.20789284,4386.6,4386.5,1e-08]
[1756900010967,8.20259284,4386.6,4386.5,1e-08]
[1756900011674,7.73639284,4386.6,4386.5,1e-08]
[1756900014277,8.20259284,4386.6,4386.5,1e-08]
[1756900016845,8.2940213,4386.6,4386.5,1e-08]
[1756900017549,0.792,4386.2,4385.8,0.029]
[1756900017873,5.28003374,4385.9,4385.8,0.029]
[1756900018168,5.69563374,4385.9,4385.8,0.029]
[1756900018959,6.07208573,4385.8,4385.7,0.01]
[1756900019160,6.07213772,4385.7,4385.3,0.4364]
[1756900019686,6.07213772,4385.7,4385.3,0.004]
[1756900019879,6.17113772,4385.7,4385.3,0.004]
[1756900020187,7.07134007,4385.7,4385.6,1e-08]
[1756900020392,6.97234007,4385.7,4385.6,1e-08]
[1756900021157,6.97234007,4385.7,4385.6,0.75430001]
[1756900021357,6.18653772,4385.7,4385.6,1.23650001]
[1756900021553,2.28013772,4385.7,4385.6,1.23650001]
[1756900022659,2.27933772,4385.7,4385.6,1.23650001]
[1756900026008,2.27933772,4385.7,4385.6,0.75430001]
[1756900026206,3.07133772,4385.7,4385.6,0.29670001]
[1756900026520,6.99483857,4385.7,4385.6,1e-08]
[1756900027002,7.45613857,4385.7,4385.6,1e-08]
[1756900027795,6.99483857,4385.7,4385.6,1e-08]
[1756900029511,6.89583857,4385.7,4385.6,1e-08]
[1756900029680,6.89583857,4385.7,4385.6,0.29670001]
[1756900029886,6.89583857,4385.7,4385.6,1.23650001]
[1756900031470,6.89583857,4385.7,4385.6,0.75430001]
[1756900031816,7.01023857,4385.7,4385.6,0.29670001]
[1756900032118,7.01023857,4385.7,4385.6,1e-08]
[1756900033187,7.01023857,4385.7,4385.6,0.75430001]
[1756900034400,7.01023857,4385.7,4385.6,0.29670001]
[1756900034607,7.01023857,4385.7,4385.6,0.75430001]
[1756900034780,7.10923857,4385.7,4385.6,1e-08]
[1756900035116,7.01023857,4385.7,4385.6,1e-08]
[1756900035626,7.11033857,4385.7,4385.6,1e-08]
[1756900035783,3.0722937,4385.4,4385.3,1e-08]
[1756900036106,6.1866937,4385.4,4385.3,1e-08]
[1756900037838,6.1866937,4385.4,4385.3,0.29670001]
[1756900038116,6.1866937,4385.4,4385.3,1.23650001]
[1756900038480,6.0722937,4385.4,4385.3,1.23650001]
[1756900038780,5.3946937,4385.4,4385.3,1.23650001]
[1756900038981,6.1866937,4385.4,4385.3,1.23650001]
[1756900041919,7.27146006,4385.4,4385.3,1e-08]
[1756900042913,6.1876937,4385.4,4385.3,1.23650001]
[1756900047195,6.1868937,4385.4,4385.3,1.23650001]
[1756900048126,6.1868937,4385.4,4385.3,0.75430001]
[1756900052615,6.1868937,4385.4,4385.3,1.24050001]
[1756900053005,6.1868937,4385.4,4385.3,0.75430001]
[1756900053422,7.85383937,4385.4,4385.3,0.75430001]
[1756900054698,7.85383937,4385.4,4385.3,1e-08]
[1756900055548,7.95283937,4385.4,4385.3,1e-08]
[1756900056054,7.85383937,4385.4,4385.3,1e-08]
[1756900057256,8.44543937,4385.4,4385.3,1e-08]
[1756900057430,2.2803977,4385.2,4385.1,0.004]
[1756900057617,7.73737016,4385.2,4385.1,1e-08]
[1756900057819,8.33007016,4385.2,4385.1,1e-08]
[1756900058562,8.33007016,4385.2,4384.7,0.004]
[1756900058563,6.07260572,4384.8,4384.7,0.004]
[1756900058866,2.28076177,4384.5,4384.0,0.4475]
[1756900059048,2.38196177,4384.5,4384.0,0.4475]
[1756900059249,6.93744695,4384.5,4384.0,0.4475]
[1756900059560,7.05184695,4384.5,4384.4,0.757]
[1756900059778,7.05184695,4384.5,4384.4,1.2432]
[1756900059968,6.18716177,4384.5,4384.4,1.2432]
[1756900060265,5.39516177,4384.5,4384.4,1.2432]
[1756900063397,5.8325931,4385.4,4384.4,1.2432]
[1756900063555,2.28075931,4384.6,4384.5,0.9337]
[1756900063765,2.28075931,4384.6,4384.5,1.2392]
[1756900065049,2.28066572,4384.7,4384.5,1.2392]
[1756900065250,2.28066572,4384.7,4384.6,0.9337]
[1756900065555,2.3950537,4384.8,4384.6,1.2392]
[1756900065757,2.28065774,4384.7,4384.6,0.3055]
[1756900066444,2.28065774,4384.7,4384.6,1.2392]
[1756900068395,0.001,4385.4,4384.6,1.2392]
[1756900068605,0.001,4385.4,4385.1,2.28040926]
[1756900068763,0.001,4385.4,4385.2,2.28038975]
[1756900068965,0.001,4385.4,4385.3,0.3055]
[1756900069171,0.001,4385.4,4385.3,1.2392]
[1756900069372,0.001,4385.4,4385.3,3.87150467]
[1756900071459,0.001,4385.4,4385.3,9.87107518]
[1756900071684,0.0002,4385.4,4385.3,9.87107518]
[1756900075504,0.0002,4385.4,4385.3,4.03948208]
[1756900075681,0.0002,4385.4,4385.3,0.753]
[1756900077579,2.28038638,4385.3,4384.9,0.9337]
[1756900077812,0.0002,4385.4,4384.9,0.4475]
[1756900077979,2.28035326,4385.3,4385.0,0.4475]
[1756900078394,2.28035326,4385.3,4385.1,0.1144]
[1756900078909,0.0002,4385.4,4385.1,0.1144]
[1756900079312,2.2803457,4385.3,4385.1,0.1144]
[1756900079819,2.28049825,4385.4,4385.1,0.5528]
[1756900080017,0.0002,4385.4,4385.3,0.2875]
[1756900080586,0.0002,4385.4,4385.3,1.2176]
[1756900080781,0.0002,4385.4,4385.3,0.7259]
[1756900080985,0.0002,4385.4,4385.3,0.2875]
[1756900081281,2.2804937,4385.4,4385.3,0.2875]
[1756900081605,2.2803977,4385.2,4385.1,0.1144]
[1756900081920,2.28035414,4385.3,4385.1,0.1144]
[1756900082618,2.28050733,4385.4,4385.1,0.1144]
[1756900083026,0.0002,4385.4,4385.1,0.1144]
[1756900083232,0.0002,4385.4,4385.1,0.5528]
[1756900083528,0.0002,4385.4,4385.2,0.4384]
[1756900083885,2.28050519,4385.4,4385.2,0.4384]
[1756900084090,0.0002,4385.4,4385.1,0.1144]
[1756900084619,2.28038175,4385.3,4385.1,0.1144]
[1756900084816,0.0002,4385.4,4385.1,0.1144]
[1756900085720,2.2803977,4385.2,4385.1,0.1144]
[1756900085926,0.55508945,4385.2,4384.6,0.1184]
[1756900086136,0.5585,4385.2,4384.6,0.1184]
[1756900086322,2.28065774,4384.7,4384.6,0.1184]
[1756900086494,2.28065774,4384.7,4384.6,0.004]
[1756900086823,0.1144,4385.0,4384.6,0.7299]
[1756900087022,0.099,4384.7,4384.6,0.004]
[1756900087225,2.37965774,4384.7,4384.6,0.004]
[1756900092606,6.21490889,4384.7,4384.6,0.004]
[1756900092802,6.67440889,4384.7,4384.6,0.004]
[1756900093027,6.99720889,4384.7,4384.6,0.004]
[1756900094334,6.78880889,4384.7,4384.6,0.004]
[1756900096131,6.78800889,4384.7,4384.6,0.004]
[1756900099250,6.32850889,4384.7,4384.6,0.004]
[1756900099818,6.78800889,4384.7,4384.6,0.004]
[1756900100838,7.58000889,4384.7,4384.6,0.004]
[1756900101014,7.78840889,4384.7,4384.6,0.004]
[1756900101538,12.3560519,4384.7,4384.6,0.004]
[1756900102542,11.8965519,4384.7,4384.6,0.004]
[1756900105468,12.5644519,4384.7,4384.6,0.004]
[1756900105766,12.3560519,4384.7,4384.6,0.004]
[1756900106178,7.58000889,4384.7,4384.6,0.004]
[1756900106482,7.12050889,4384.7,4384.6,0.004]
[1756900106747,7.12050889,4384.7,4384.6,0.7299]
[1756900106748,10.17110075,4384.7,4384.6,0.7299]
[1756900106947,10.17110075,4384.7,4384.6,0.2915]
[1756900107128,10.17110075,4384.7,4384.6,0.004]
[1756900107718,10.17110075,4384.7,4384.6,0.2915]
[1756900108923,10.17110075,4384.7,4384.6,0.7299]
[1756900109336,10.17110075,4384.7,4384.6,0.2915]
[1756900109617,10.17110075,4384.7,4384.6,0.004]
[1756900109821,10.27010075,4384.7,4384.6,0.004]
[1756900110022,11.5271062,4384.7,4384.6,0.004]
[1756900110249,11.9964062,4384.7,4384.6,0.004]
[1756900111358,11.5271062,4384.7,4384.6,0.004]
[1756900111556,12.3191062,4384.7,4384.6,0.004]
[1756900111761,12.7884062,4384.7,4384.6,0.004]
[1756900111929,12.7894062,4384.7,4384.6,0.004]
[1756900112130,12.3201062,4384.7,4384.6,0.004]
[1756900112325,7.54406319,4384.7,4384.6,0.004]
[1756900112942,8.01336319,4384.7,4384.6,0.004]
[1756900113576,8.22096319,4384.7,4384.6,0.004]
[1756900113888,8.22096319,4384.7,4384.1,0.004]
[1756900113889,3.07291784,4384.2,4384.1,0.004]
[1756900114053,11.38433754,4384.2,4384.1,0.004]
[1756900114253,12.18112361,4384.2,4384.1,0.004]
[1756900114945,12.06813754,4384.2,4384.1,0.004]
[1756900115150,11.59883754,4384.2,4384.1,0.004]
[1756900115350,11.49873754,4384.2,4384.1,0.004]
[1756900116366,11.59993754,4384.2,4384.1,0.004]
[1756900116572,11.59773754,4384.2,4384.1,0.004]
[1756900117072,11.49873754,4384.2,4384.1,0.004]
[1756900119773,10.70673754,4384.2,4384.1,0.7415]
[1756900119952,10.17136085,4384.2,4384.1,1.2074]
[1756900120554,0.1144,4384.2,4384.1,1.2074]
[1756900120762,2.28091784,4384.2,4384.1,1.2074]
[1756900121878,10.05696085,4384.2,4384.1,0.7415]
[1756900122273,10.05696085,4384.2,4384.1,0.3021]
[1756900122439,11.31132625,4384.2,4384.1,0.004]
[1756900123345,12.20232625,4384.2,4384.1,0.004]
[1756900123695,7.32728324,4384.2,4384.1,0.3021]
[1756900123876,12.10332625,4384.2,4384.1,0.7415]
[1756900124174,11.31132625,4384.2,4384.1,0.7415]
[1756900124367,11.31132625,4384.2,4384.1,0.004]
[1756900125077,11.31132625,4384.2,4384.1,0.7415]
[1756900125262,10.05696085,4384.2,4384.1,1.2074]
[1756900126377,10.05696085,4384.2,4384.1,0.7415]
[1756900127446,5.28091784,4384.2,4384.1,1.2074]
[1756900127650,5.28091784,4384.2,4384.1,0.7415]
[1756900128849,5.28091784,4384.2,4384.1,0.3021]
[1756900129049,5.28091784,4384.2,4384.1,0.004]
[1756900129245,5.28091784,4384.2,4384.1,0.3021]
[1756900129483,5.58651784,4384.2,4384.1,0.004]
[1756900129689,6.87144324,4384.2,4384.1,0.004]
[1756900129991,6.56584324,4384.2,4384.1,0.004]
[1756900130290,5.28091784,4384.2,4384.1,0.7415]
[1756900132187,5.28091784,4384.2,4384.1,0.3021]
[1756900132387,5.28091784,4384.2,4384.1,0.004]
[1756900133288,5.58651784,4384.2,4384.1,0.004]
[1756900133457,6.84781784,4384.2,4384.1,0.004]
[1756900133792,8.25887324,4384.2,4384.1,0.004]
[1756900133988,7.48397324,4384.2,4384.1,0.004]
[1756900134160,12.26001625,4384.2,4384.1,0.004]
[1756900134361,12.35901625,4384.2,4384.1,0.004]
[1756900136270,0.792,4384.1,4382.2,0.4659]
[1756900136467,6.07359437,4382.9,4382.2,0.9053]
[1756900136667,6.76041875,4382.9,4382.2,0.9053]
[1756900136876,6.17369437,4382.9,4382.4,0.4394]
[1756900138489,6.07359437,4382.9,4382.8,0.3231]
[1756900138718,5.28159437,4382.9,4382.8,1.2284]
[1756900139994,3.0,4382.9,4382.8,1.2284]
[1756900140368,0.68617775,4383.0,4382.8,1.35124]
[1756900140692,2.28138617,4383.3,4382.9,0.9053]
[1756900140990,0.68595653,4383.1,4382.9,0.9053]
[1756900141194,2.96745016,4383.1,4383.0,1.1906]
[1756900143201,2.28159437,4382.9,4382.8,0.025]
[1756900143583,2.28159437,4382.9,4382.8,0.3103]
[1756900143784,2.2815536,4383.0,4382.8,1.2156]
[1756900143981,3.68595653,4383.1,4382.9,0.9053]
[1756900144173,5.96744679,4383.1,4383.0,1.1906]
[1756900145103,5.96664679,4383.1,4383.0,1.1906]
[1756900146273,6.08104679,4383.1,4383.0,1.1946]
[1756900146475,6.08104679,4383.1,4383.0,0.7292]
[1756900147979,6.08104679,4383.1,4383.0,1.1946]
[1756900149203,6.08104679,4383.1,4383.0,0.7292]
[1756900149398,6.08104679,4383.1,4383.0,1.1946]
[1756900150009,5.96664679,4383.1,4383.0,1.1946]
[1756900150508,3.68515653,4383.1,4383.0,1.1946]
[1756900151315,5.96664679,4383.1,4383.0,1.1946]
[1756900151529,5.96664679,4383.1,4383.0,0.004]